Cogmind - Beta 10.2 @@@ ROGUE MODE // 2020.11.15 @ 18:52:43 // Halloween2020/ForbiddenLore Player: W_W Result: Destroyed by Striker with Plasma Lance Performance ------------- Evolutions (5) 2500 Regions Visited (13) 2600 Robots Destroyed (140) 700 Value Destroyed (5249) 5249 Prototype IDs (33) 660 Alien Tech Used (1) 200 Bonus (3982) 3982 TOTAL SCORE: 15891 Bonus ------- Follower Combat Kills 882 Aligned with FarCom 300 Met Warlord at Base 500 MAIN.C Attacked Warlord 500 Warlord Defense Kill 1816 Friendly Fire -16 Cogmind --------- Core Integrity 0/1000 Matter 270/600 Energy 410/410 System Corruption 0% Temperature Cool (343) Movement Core (3650) Ox72 Location -5/Warlord Parts ------- > --- POWER (2) -------- Micro Fission Core Particle Reactor > --- PROPULSION (4) --- (None) > --- UTILITY (7) ------ High-capacity Storage Unit High-capacity Storage Unit High-capacity Storage Unit Humpback Improved Matter Compressor > --- WEAPON (4) ------- Gauss Rifle Gauss Rifle Railgun > --- INVENTORY (48) --- Nuclear Core Cold Fusion Reactor Improved Cooling System High-capacity Storage Unit High-capacity Storage Unit Improved ECM Suite Hacking Suite Trap Reconfigurator Recalibrator Improved Recalibrator Drone Bay (2/2) Decoy Drone Bay (16/16) Variable Charge Gun KE Penetrator Magnetic Acceleration Cannon Improved Remote Datajack Plasma Flamer Chainsword Signal Generator Peak State ------------ > --- POWER ------------ Cold Fusion Reactor Micro Fission Core > --- PROPULSION ------- Improved Treads Improved Medium Treads Improved Medium Treads Improved Medium Treads > --- UTILITY ---------- Improved Heat Sink High-capacity Storage Unit High-capacity Storage Unit High-capacity Storage Unit Humpback Layered Light Armor Plating > --- WEAPON ----------- Vortex Shotgun Proton Cannon Vortex Cannon Vortex Cannon > --- INVENTORY -------- Nuclear Core Nuclear Core Particle Reactor Improved Medium Treads Improved Medium Treads Gravmag System Improved Cooling System Advanced Cooling System High-capacity Storage Unit High-capacity Storage Unit Humpback Improved Matter Compressor Improved Matter Compressor Improved ECM Suite Improved Light Armor Plating Improved Medium Armor Plating Layered Light Armor Plating Hacking Suite Hacking Suite Trap Reconfigurator Recalibrator Improved Recalibrator Drone Bay Decoy Drone Bay Variable Charge Gun Variable Charge Gun Variable Charge Gun Vortex Shotgun Phase Cannon Heavy Phase Cannon Neutron Cannon Gauss Rifle Gauss Rifle Gauss Rifle Hypervelocity Gauss Rifle KE Penetrator Railgun Magnetic Acceleration Cannon Bore Cannon Improved Remote Datajack Plasma Flamer Chainsword Signal Generator Signal Generator [Rating: 93] Favorites ----------- Power Light Nuclear Core Engine Ion Engine Power Core Light Nuclear Core Reactor Cold Fusion Reactor Propulsion Light Treads Treads Light Treads Leg Aluminum Leg Flight Unit Improved Flight Unit Utility High-capacity Storage Unit Device Improved Heat Sink Storage High-capacity Storage Unit Protection Layered Light Armor Plating Weapon Light Cannon Energy Gun Variable Charge Gun Energy Cannon Particle Cannon Ballistic Gun Flak Gun Ballistic Cannon Light Cannon Launcher Grenade Launcher Slashing Weapon Chainsword Build | -11 -10 -10 -9 -9 -9 -8 -8 -7 -6 -6 -5 -5 -5 ------- Run | Scr Mat Min Mat Min Exi Min Mat Fac Fac Ext Fac Upp War Slots Evolved 10 | . . . 2 . . . 2 2 2 . 2 . . Power 1 | . . . . . . . . . . . 1 . . Propulsion 2 | . . . . . . . . 1 . . 1 . . Utility 5 | . . . 1 . . . 1 1 2 . . . . Weapon 2 | . . . 1 . . . 1 . . . . . . Parts Attached 147 | 8 11 4 6 11 4 2 16 3 7 17 5 25 28 Power 23 | 1 1 2 2 2 . 2 3 . 1 . 2 3 4 Engine 9 | 1 1 1 1 . . . 1 . . . 2 1 1 Core 11 | . . 1 1 2 . 2 2 . . . . 1 2 Reactor 3 | . . . . . . . . . 1 . . 1 1 Propulsion 28 | 3 2 1 1 3 . . 4 1 1 2 1 4 5 Treads 26 | 2 2 1 1 2 . . 4 1 1 2 1 4 5 Leg 1 | 1 . . . . . . . . . . . . . Wheel . | . . . . . . . . . . . . . . Hover . | . . . . . . . . . . . . . . Flight 1 | . . . . 1 . . . . . . . . . Utility 38 | 2 3 . 1 1 4 . 3 2 1 8 1 7 5 Device 8 | . . . . . . . . . . 4 . 3 1 Storage 18 | 2 3 . . 1 3 . . 1 . 2 1 3 2 Processor . | . . . . . . . . . . . . . . Hackware . | . . . . . . . . . . . . . . Protection 12 | . . . 1 . 1 . 3 1 1 2 . 1 2 Artifact . | . . . . . . . . . . . . . . Weapon 58 | 2 5 1 2 5 . . 6 . 4 7 1 11 14 Energy Gun 11 | 1 2 . . . . . 1 . 1 . . 3 3 Energy Cannon 14 | . . . 2 1 . . 2 . . 1 . 4 4 Ballistic Gun 15 | 1 3 . . . . . 1 . . 4 . 1 5 Ballistic Cannon 8 | . . . . . . . 1 . 2 1 1 1 2 Launcher 6 | . . 1 . 4 . . 1 . . . . . . Special Weapon . | . . . . . . . . . . . . . . Impact Weapon . | . . . . . . . . . . . . . . Slashing Weapon 4 | . . . . . . . . . 1 1 . 2 . Piercing Weapon . | . . . . . . . . . . . . . . Special Melee Weapon . | . . . . . . . . . . . . . . Unidentified Prototypes 9 | . . . . 1 . . 2 . 1 2 . 1 2 Parts Lost 54 | . 1 4 . . . . 1 . 3 8 2 14 21 Power 7 | . . 1 . . . . . . . . 1 3 2 Propulsion 13 | . . 2 . . . . . . 1 1 . 3 6 Utility 11 | . . . . . . . . . . 3 . 2 6 Weapon 23 | . 1 1 . . . . 1 . 2 4 1 6 7 Highest Loss Streak 9 | . 1 2 . . . . 1 . 2 3 2 8 9 Average Slot Usage (%) 89 | . 99 91 82 99 93 88 89 89 81 82 77 88 91 Engine 3 | . 14 11 . . . . . . . . 3 5 . Core 4 | . . 1 10 10 11 11 9 7 3 . . 2 4 Reactor 1 | . . . . . . . . . 2 6 1 2 4 Treads 21 | . 28 21 16 21 22 22 18 21 18 19 18 22 21 Device 2 | . . . . . . . . . . 4 5 4 5 Storage 21 | . 28 28 22 22 21 22 18 15 13 19 17 20 22 Protection 5 | . . . 5 11 4 . 8 13 19 5 5 4 4 Energy Gun 2 | . 10 . . . . . . . . 2 . 4 4 Energy Cannon 8 | . . . 6 22 22 22 15 7 5 . 5 6 10 Ballistic Gun 6 | . 17 19 9 . . . 4 7 1 8 12 . . Ballistic Cannon 4 | . . . . . . . 8 7 12 12 3 4 4 Launcher 4 | . . 8 11 11 11 11 6 7 1 . . . . Naked Turns . | . . . . . . . . . . . . . . Heaviest Build 237 | 17 57 57 66 87 132 132 142 143 169 230 237 237 231 Greatest Support 118 | 40 40 40 40 48 48 48 48 68 70 70 100 118 118 Greatest Overweight (x) 40 | 1 1 2 2 1 2 2 2 2 3 4 3 3 40 Average Overweight (x) 1 | . . 1 1 1 1 2 2 2 2 2 2 1 1 Largest Inventory Capacity 72 | 8 18 18 18 20 32 32 32 32 32 52 52 72 48 Average Capacity 34 | 7 15 18 18 18 26 32 32 32 32 51 51 49 47 Most Carried 52 | 7 18 18 18 20 30 31 32 32 32 52 52 52 48 Average Carried 31 | 5 13 17 17 18 24 29 31 31 31 43 48 45 43 Final Capacity 52 | 8 18 18 18 20 32 32 32 32 32 52 52 48 48 Final Carried 51 | 7 18 18 18 20 29 30 32 32 32 51 51 44 20 Class Distribution -------------------- 28% | Hauler-Mutant 24% | Mutant 23% | Hauler-Skirmisher 21% | Hauler-Tank Dominant Class ---------------- Mutant | -10/Materials Mutant | -10/Mines Mutant | -9/Materials Hauler-Mutant | -9/Mines Hauler-Mutant | -9/Exiles Hauler-Mutant | -8/Mines Hauler-Skirmisher | -8/Materials Hauler-Tank | -7/Factory Hauler-Tank | -6/Factory Hauler-Skirmisher | -6/Extension Hauler-Skirmisher | -5/Factory Hauler-Mutant | -5/Upper Caves Hauler-Tank | -5/Warlord Resources | -11 -10 -10 -9 -9 -9 -8 -8 -7 -6 -6 -5 -5 -5 ----------- Run | Scr Mat Min Mat Min Exi Min Mat Fac Fac Ext Fac Upp War Matter Collected 4401 | 446 311 632 44 251 40 61 669 209 293 736 227 465 17 Remotely . | . . . . . . . . . . . . . . Salvage Created 5477 | 244 495 230 130 338 . 72 830 284 332 754 267 852 649 Parts 281 | 17 37 9 11 20 . 8 42 15 16 28 16 33 29 Haulers Intercepted 5 | . 1 . 1 . . . 3 . . . . . . Recyclers Shooed 9 | . 4 . . . . . 2 . . 2 1 . . Parts Field Recycled . | . . . . . . . . . . . . . . Retrieved Matter . | . . . . . . . . . . . . . . Parts Self-Destructed 136 | . . . . . . . . . . . . 23 113 Prevented 43 | . . . . . . . . . . . . 5 38 Kills | -11 -10 -10 -9 -9 -9 -8 -8 -7 -6 -6 -5 -5 -5 ------- Run | Scr Mat Min Mat Min Exi Min Mat Fac Fac Ext Fac Upp War Combat Hostiles Destroyed 118 | . 12 12 5 8 . 3 14 6 9 15 3 16 15 Melee 1 | . . . . . . . . . . . . . 1 Guns 37 | . 12 5 . . . . 1 . . 10 . 5 4 Cannons 54 | . . . 2 6 . 1 8 4 7 5 2 11 8 AOE 23 | . . 7 3 2 . 2 5 2 2 . . . . Classes Destroyed 20 | 3 4 2 . 3 . . . 2 . 2 . . 4 Worker 8 | 4 . 2 . . . 2 . . . . . . . Builder 3 | . . . . 1 . . 1 . . . 1 . . Tunneler 6 | 4 2 . . . . . . . . . . . . Hauler 5 | . 1 . 1 . . . 3 . . . . . . Recycler 7 | 1 . 1 . . . . 2 1 . 1 1 . . Operator 1 | . . . . . . . . . . 1 . . . Watcher 2 | . 1 . . . . . 1 . . . . . . Swarmer 24 | . 6 . 3 . . 3 2 2 . 5 . 3 . Saboteur 2 | . . . . . . . . . . . . . 2 Grunt 42 | . 6 . 2 6 . . 7 . 5 1 . 9 6 Brawler 4 | . . . . 1 . . 1 . . . . . 2 Duelist 3 | . . . . 1 . . . . . . . 1 1 Sentry 14 | . . 2 . . . . 4 1 1 4 . 2 . Specialist 2 | . . . . . . . . . . . . . 2 Hunter 4 | . . . . . . . . 1 1 1 1 . . Programmer 7 | . . . . . . . . 2 2 1 2 . . Behemoth 2 | . . . . . . . . . . 1 . 1 . Striker 1 | . . . . . . . . . . . . . 1 Executioner 1 | . . . . . . . . . . . . . 1 Assembled 10 | . . 10 . . . . . . . . . . . Thug 1 | . . . . . . . . . . 1 . . . Guerrilla 1 | . . . . . . . . . . 1 . . . Best Kill Streak 8 | 4 4 5 3 3 . 3 5 4 3 4 2 7 8 Combat Bots Only 8 | . 3 5 3 3 . 3 3 4 3 4 2 7 8 Max Kills in Single Turn 3 | 1 1 3 3 2 . 2 3 2 1 2 1 1 1 Gunslinging . | . . . . . . . . . . . . . . Exploded 3 | . . 3 3 2 . 2 1 2 1 . . . . Melee 1 | . . . . . . . . . . . . . 1 Uniques/NPCs Destroyed . | . . . . . . . . . . . . . . Combat | -11 -10 -10 -9 -9 -9 -8 -8 -7 -6 -6 -5 -5 -5 -------- Run | Scr Mat Min Mat Min Exi Min Mat Fac Fac Ext Fac Upp War Damage Taken 11887 | . 335 412 30 163 . 35 387 525 919 1382 575 2588 4536 Core 1344 | . 51 71 . 14 . . 15 39 35 98 82 108 831 Absorbed by Shields 570 | . . . . . . . . . . 254 . . 316 Core Remaining (%) 87 | 100 . 51 . . . 96 97 94 . 84 . . . Volleys Fired 324 | 22 42 35 5 11 . 4 36 16 21 41 14 43 34 Largest 4 | 2 2 2 2 3 . 2 4 4 4 4 4 4 4 Hottest 297 | 60 60 50 80 170 . 137 195 163 193 179 196 297 297 Shots Fired 834 | 44 84 57 9 24 . 7 115 39 72 143 46 107 87 Gun 373 | 44 84 42 4 . . . 24 10 3 56 25 43 38 Cannon 423 | . . . 4 22 . 6 87 20 63 87 21 64 49 Launcher 38 | . . 15 1 2 . 1 4 9 6 . . . . Special . | . . . . . . . . . . . . . . Kinetic 448 | 22 47 42 4 . . . 60 20 45 118 32 24 34 Thermal 206 | . . . 4 11 . 3 35 10 21 25 14 62 21 Explosive 38 | . . 15 1 2 . 1 4 9 6 . . . . Electromagnetic 117 | 22 37 . . 11 . 3 16 . . . . 21 7 Entropic 25 | . . . . . . . . . . . . . 25 Robot Hit Streak 23 | 8 23 8 6 7 . 3 19 10 18 20 12 19 10 Robot Miss Streak 7 | 2 3 3 1 2 . 2 4 4 2 5 7 2 6 Penetration Max 1 | . . . . . . . . . . . . . 1 Secondary Targets 2 | . 2 . . . . . . . . . . . . Max Gunslinging Chain 1 | . 1 . . . . . . . . . . . . Shots Hit Robots 508 | 25 57 29 6 14 . 2 64 24 40 87 26 76 58 Core Hits 275 | 10 24 29 8 13 . 5 35 13 26 43 11 26 32 Critical Hits 19 | 1 . . . . . . 1 . 3 1 . 9 4 Critical Kills 10 | 1 . . . . . . 1 . 1 . . 6 1 Critical Parts Destroyed 7 | . . . . . . . . . 1 . . 3 3 Melee Attacks 9 | . . . . . . . . . 1 2 . 6 . Impact . | . . . . . . . . . . . . . . Slashing 9 | . . . . . . . . . 1 2 . 6 . Piercing . | . . . . . . . . . . . . . . Sneak Attacks . | . . . . . . . . . . . . . . Combat Hostiles . | . . . . . . . . . . . . . . Follow-up Attacks . | . . . . . . . . . . . . . . Damage Inflicted 14462 | 315 785 729 213 613 . 256 1894 904 1408 1628 688 2187 2842 Guns 4854 | 315 748 220 25 . . . 214 111 16 872 238 768 1327 Cannons 6864 | . . . 69 340 . 24 1003 378 927 756 433 1419 1515 Explosions 2230 | . . 450 118 183 . 168 516 352 443 . . . . Melee . | . . . . . . . . . . . . . . Ramming 514 | . 37 59 1 90 . 64 161 63 22 . 17 . . Kinetic 4507 | 129 323 220 25 . . . 473 240 500 1283 292 311 711 Thermal 4071 | . . . 69 186 . . 463 249 443 345 379 1538 399 Explosive 2146 | . . 450 118 140 . 168 475 352 443 . . . . Electromagnetic 1641 | 186 425 . . 197 . 24 322 . . . . 338 149 Impact . | . . . . . . . . . . . . . . Slashing . | . . . . . . . . . . . . . . Piercing . | . . . . . . . . . . . . . . Entropic 1583 | . . . . . . . . . . . . . 1583 Highest Corruption 4 | . . 1 . . . . . 2 . . 4 4 4 Average Corruption 2 | . . 1 . . . . . 1 . . 3 4 4 Corruption Purged . | . . . . . . . . . . . . . . Effects 84 | . . 5 . . . . . 2 . . 20 50 7 Message Errors 27 | . . 4 . . . . . 1 . . 3 15 4 Matter Fused 16 | . . . . . . . . . . . 7 9 . Heat Flow Errors 7 | . . . . . . . . . . . 2 3 2 Energy Discharges 11 | . . 1 . . . . . 1 . . 2 6 1 Data Loss (minor) 11 | . . . . . . . . . . . 1 10 . Targeting Errors 9 | . . . . . . . . . . . 2 7 . Weapon Failures 3 | . . . . . . . . . . . 3 . . Overload Shots . | . . . . . . . . . . . . . . Overflow Damage 326 | . . . . 14 . 18 59 42 33 8 . 65 87 Projectiles 242 | . . . . 14 . . 30 11 27 8 . 65 87 Explosions 84 | . . . . . . 18 29 31 6 . . . . Melee . | . . . . . . . . . . . . . . Knockbacks 18 | . . . . . . . 3 . 2 6 2 3 2 Impact 3 | . . . . . . . 2 . . . 1 . . Kinetic 14 | . . . . . . . 1 . 2 5 1 3 2 Secondary 1 | . . . . . . . . . . 1 . . . Self-Inflicted Damage 158 | . . 75 . 23 . . 40 5 . . 15 . . Shots 7 | . . 3 . 1 . . 1 1 . . 1 . . Rammed 57 | . 14 8 . 6 . 6 13 4 5 . 1 . . Targets Rammed 59 | . 14 8 1 6 . 6 14 4 5 . 1 . . Kicked . | . . . . . . . . . . . . . . Crushed 2 | . . . 1 . . . 1 . . . . . . Highest Temperature 534 | 20 30 40 78 431 . 197 384 299 492 444 157 513 534 Average Temperature 153 | 20 15 18 38 185 . 113 115 141 233 110 70 198 254 Received Heat Transfer 2222 | . 81 185 6 84 . . 135 . 243 344 . 468 676 Effects 31 | . . . . 1 . . 3 . 14 . . 7 6 Shutdowns 8 | . . . . 1 . . . . 1 . . 4 2 Energy Bleed 10 | . . . . . . . 2 . 5 . . 2 1 Interference 9 | . . . . . . . 1 . 6 . . 1 1 Matter Decay 1 | . . . . . . . . . 1 . . . . Damage (minor) 1 | . . . . . . . . . 1 . . . . Damage (major) 1 | . . . . . . . . . . . . . 1 Damage (core) 1 | . . . . . . . . . . . . . 1 Siege Activations . | . . . . . . . . . . . . . . Robots Corrupted . | . . . . . . . . . . . . . . Combat Hostiles . | . . . . . . . . . . . . . . Parts Fried 4 | . . . . . . . 2 . . 1 . 1 . Impact Corruptions . | . . . . . . . . . . . . . . Robots Melted 1 | . . . . . . . . . . . 1 . . Combat Hostiles 1 | . . . . . . . . . . . 1 . . Parts Melted 5 | . . . . 1 . . . . . . 3 1 . Heat Transferred 5368 | . . . 148 309 . . 753 333 629 740 407 1689 360 Parts Sabotaged 6 | . . . . . . . . . . . . . 6 Parts Stolen . | . . . . . . . . . . . . . . Parts Stripped . | . . . . . . . . . . . . . . Power Chain Reactions 2 | . . . . 1 . . 1 . . . . . . Missiles Intercepted . | . . . . . . . . . . . . . . Alert | -11 -10 -10 -9 -9 -9 -8 -8 -7 -6 -6 -5 -5 -5 ------- Run | Scr Mat Min Mat Min Exi Min Mat Fac Fac Ext Fac Upp War Peak Influence 342 | 45 233 90 260 168 . 93 316 321 216 245 342 . . Initial 143 | . 29 70 10 101 . . . 143 100 58 32 . . Average 67 | 25 80 23 143 41 . 30 81 168 89 82 52 . . Maximum Alert Level 1 | . 1 . 1 . . . 1 1 1 1 1 . . Low Security (%) 94 | 100 94 100 58 100 . 100 99 80 97 89 92 . . Level 1 5 | . 5 . 41 . . . . 19 2 10 7 . . Level 2 . | . . . . . . . . . . . . . . Level 3 . | . . . . . . . . . . . . . . Level 4 . | . . . . . . . . . . . . . . Level 5 . | . . . . . . . . . . . . . . High Security . | . . . . . . . . . . . . . . Max Security . | . . . . . . . . . . . . . . Squads Dispatched 13 | . 2 . . 1 . . . 4 3 1 2 . . Investigation 4 | . 2 . . 1 . . . 1 . . . . . Extermination 6 | . . . . . . . . 2 2 . 2 . . Reinforcement 3 | . . . . . . . . 1 1 1 . . . Assault . | . . . . . . . . . . . . . . Garrison . | . . . . . . . . . . . . . . Intercept . | . . . . . . . . . . . . . . Construction Impeded 2 | . . . . . . . . . 1 1 . . . Haulers Reinforced 1 | . . . . . . . . 1 . . . . . Stealth | -11 -10 -10 -9 -9 -9 -8 -8 -7 -6 -6 -5 -5 -5 --------- Run | Scr Mat Min Mat Min Exi Min Mat Fac Fac Ext Fac Upp War Distress Signals 11 | . 1 . 2 . . . 6 . . 2 . . . Communications Jammed . | . . . . . . . . . . . . . . Distress Signals . | . . . . . . . . . . . . . . Times Spotted 203 | . 23 17 9 8 . 3 41 7 9 25 5 17 39 Peak Tracking Total 12 | . 4 5 3 3 . 3 6 4 3 5 2 7 12 Tactical Retreats 12 | . 1 2 . . . . 4 . . 1 . 1 3 Traps | -11 -10 -10 -9 -9 -9 -8 -8 -7 -6 -6 -5 -5 -5 ------- Run | Scr Mat Min Mat Min Exi Min Mat Fac Fac Ext Fac Upp War Traps Triggered 14 | . 4 . . . . . . 2 1 7 . . . Indirectly . | . . . . . . . . . . . . . . Trap Hack Attempts . | . . . . . . . . . . . . . . Triggered . | . . . . . . . . . . . . . . Disarmed . | . . . . . . . . . . . . . . Reprogrammed . | . . . . . . . . . . . . . . Reused . | . . . . . . . . . . . . . . Traps Extracted . | . . . . . . . . . . . . . . Installed . | . . . . . . . . . . . . . . Triggered 20 | . 1 . . . . . . . . . . . 19 Exploded 1 | . . . . . . . . . . . 1 . . Machines | -11 -10 -10 -9 -9 -9 -8 -8 -7 -6 -6 -5 -5 -5 ---------- Run | Scr Mat Min Mat Min Exi Min Mat Fac Fac Ext Fac Upp War Machines Disabled 33 | . 1 6 1 4 . 1 1 . . 3 13 3 . Max in Single Turn 3 | . 1 3 1 2 . 1 1 . . 1 1 1 . Machines Sabotaged . | . . . . . . . . . . . . . . Garrisons Compromised . | . . . . . . . . . . . . . . Overloaded Fab Kills . | . . . . . . . . . . . . . . Fab Network Shutdowns . | . . . . . . . . . . . . . . Hacking | -11 -10 -10 -9 -9 -9 -8 -8 -7 -6 -6 -5 -5 -5 --------- Run | Scr Mat Min Mat Min Exi Min Mat Fac Fac Ext Fac Upp War Machines Accessed 44 | . 7 . . 2 1 . 1 5 3 10 2 2 11 Terminals 24 | . 6 . . . . . 1 3 3 10 . 1 . Fabricators 1 | . . . . . . . . . . . 1 . . Repair Stations . | . . . . . . . . . . . . . . Recycling Units 3 | . 1 . . . . . . 1 . . 1 . . Scanalyzers . | . . . . . . . . . . . . . . Garrison Access 1 | . . . . . . . . 1 . . . . . Total Hacks 88 | . 25 . . 2 1 . 3 11 6 17 3 5 15 Successful 60 | . 17 . . 2 1 . 2 5 3 9 1 5 15 Failed 28 | . 8 . . . . . 1 6 3 8 2 . . Catastrophic 5 | . . . . . . . . 1 1 2 1 . . Database Lockouts . | . . . . . . . . . . . . . . Manual 22 | . 12 . . . 1 . 2 4 3 . . . . Terminals 59 | . 22 . . . . . 3 7 6 17 . 4 . Fabricators 1 | . . . . . . . . . . . 1 . . Repair Stations . | . . . . . . . . . . . . . . Recycling Units 8 | . 3 . . . . . . 3 . . 2 . . Scanalyzers . | . . . . . . . . . . . . . . Garrison Access 1 | . . . . . . . . 1 . . . . . Terminal Hacks 45 | . 8 . . 2 1 . 1 2 2 9 . 5 15 Record 22 | . 3 . . . . . . . . 1 . 5 13 Part Schematic 3 | . . . . . . . . 2 1 . . . . Robot Analysis 1 | . . . . . . . . . . 1 . . . Prototype ID Bank 1 | . 1 . . . . . . . . . . . . Open Door 10 | . . . . 2 . . . . 1 5 . . 2 Emergency Access Points 2 | . 1 . . . . . 1 . . . . . . Unreport Threat 1 | . . . . . . . . . . 1 . . . Dispatch Records 1 | . 1 . . . . . . . . . . . . Surveillance Status 1 | . . . . . . . . . . 1 . . . Hauler Manifests 1 | . 1 . . . . . . . . . . . . Zone Layout 1 | . 1 . . . . . . . . . . . . EX-Prototype ID Bank 1 | . . . . . 1 . . . . . . . . Fabricator Hacks . | . . . . . . . . . . . . . . Repair Station Hacks . | . . . . . . . . . . . . . . Recycling Unit Hacks 5 | . 2 . . . . . . 2 . . 1 . . Report Inventory 2 | . . . . . . . . 1 . . 1 . . Retrieve Matter 1 | . 1 . . . . . . . . . . . . Retrieve Components 2 | . 1 . . . . . . 1 . . . . . Scanalyzer . | . . . . . . . . . . . . . . Garrison Access Hacks . | . . . . . . . . . . . . . . Unauthorized Hacks 10 | . 7 . . . . . 1 1 1 . . . . Terminals 10 | . 7 . . . . . 1 1 1 . . . . Assimilate 2 | . 2 . . . . . . . . . . . . Botnet 8 | . 5 . . . . . 1 1 1 . . . . Fabricators . | . . . . . . . . . . . . . . Repair Stations . | . . . . . . . . . . . . . . Recycling Units . | . . . . . . . . . . . . . . Scanalyzers . | . . . . . . . . . . . . . . Garrison Access . | . . . . . . . . . . . . . . Data Cores Recovered . | . . . . . . . . . . . . . . Used . | . . . . . . . . . . . . . . Hacking Detections 23 | . 6 . . . . . 1 5 2 6 2 1 . Full Trace Events 1 | . . . . . . . . 1 . . . . . Feedback Events . | . . . . . . . . . . . . . . Feedback Blocked . | . . . . . . . . . . . . . . Robot Schematics Acquired . | . . . . . . . . . . . . . . Robots Built . | . . . . . . . . . . . . . . Matter . | . . . . . . . . . . . . . . Time . | . . . . . . . . . . . . . . Total Robot Build Rating . | . . . . . . . . . . . . . . Part Schematics Acquired 3 | . . . . . . . . 2 1 . . . . Parts Built . | . . . . . . . . . . . . . . Matter . | . . . . . . . . . . . . . . Time . | . . . . . . . . . . . . . . Total Part Build Rating . | . . . . . . . . . . . . . . Parts Repaired . | . . . . . . . . . . . . . . Time . | . . . . . . . . . . . . . . Parts Recycled . | . . . . . . . . . . . . . . Recycled Matter . | . . . . . . . . . . . . . . Retrieved Matter . | . . . . . . . . . . . . . . Retrieved Components 2 | . 1 . . . . . . 1 . . . . . Parts Scanalyzed . | . . . . . . . . . . . . . . Part Schematics Acquired . | . . . . . . . . . . . . . . Parts Damaged . | . . . . . . . . . . . . . . Bothacking | -11 -10 -10 -9 -9 -9 -8 -8 -7 -6 -6 -5 -5 -5 ------------ Run | Scr Mat Min Mat Min Exi Min Mat Fac Fac Ext Fac Upp War Used RIF Installer . | . . . . . . . . . . . . . . Robots Hacked . | . . . . . . . . . . . . . . Non-combat . | . . . . . . . . . . . . . . Combat . | . . . . . . . . . . . . . . Robot Hacks Applied . | . . . . . . . . . . . . . . Relay Couplers Released . | . . . . . . . . . . . . . . Robots Rewired 17 | . . . . . . . . . . 14 . . 3 Allies Hacked . | . . . . . . . . . . . . . . Hacks Repelled . | . . . . . . . . . . . . . . Allies | -11 -10 -10 -9 -9 -9 -8 -8 -7 -6 -6 -5 -5 -5 -------- Run | Scr Mat Min Mat Min Exi Min Mat Fac Fac Ext Fac Upp War Total Allies 26 | . . 3 . . . . . . . 20 . . 3 Largest Group 8 | . . 3 2 1 . . . . . 8 7 3 3 Highest-Rated Group 357 | . . 40 24 8 . . . . . 357 226 106 150 Highest-Rated Ally 156 | . . 16 16 8 . . . . . 156 37 37 60 Total Orders 14 | . . 3 . 2 . . . . . 1 4 2 2 STAY 6 | . . 1 . 1 . . . . . . 2 1 1 FOLLOW 7 | . . 2 . 1 . . . . . . 2 1 1 AID 1 | . . . . . . . . . . 1 . . . Ally Attacks 213 | . . 17 16 5 . . . . . 116 48 . 11 Total Damage 3929 | . . 139 198 43 . . . . . 2514 511 . 524 Kills 35 | . . 3 5 . . . . . . 19 5 . 3 Allies Corrupted . | . . . . . . . . . . . . . . Allies Melted . | . . . . . . . . . . . . . . Intel | -11 -10 -10 -9 -9 -9 -8 -8 -7 -6 -6 -5 -5 -5 ------- Run | Scr Mat Min Mat Min Exi Min Mat Fac Fac Ext Fac Upp War Robot Analysis Total 1 | . . . . . . . . . . 1 . . . Derelict Logs Recovered 5 | . . 1 . 1 . . . . . . . 3 . Drone Launches . | . . . . . . . . . . . . . . Drone Recoveries . | . . . . . . . . . . . . . . Exploration | -11 -10 -10 -9 -9 -9 -8 -8 -7 -6 -6 -5 -5 -5 ------------- Run | Scr Mat Min Mat Min Exi Min Mat Fac Fac Ext Fac Upp War Turns Passed 21643 | 384 1951 2306 213 1776 1108 1302 1778 772 1158 3606 1118 1938 2233 Spaces Moved 9809 | 126 978 1062 94 927 563 590 791 352 424 1440 461 904 1097 Core 7 | 6 . . . . . . . . . . . . 1 Treads 9801 | 119 978 1062 94 927 563 590 791 352 424 1440 461 904 1096 Legs 1 | 1 . . . . . . . . . . . . . Wheels . | . . . . . . . . . . . . . . Hover . | . . . . . . . . . . . . . . Flight . | . . . . . . . . . . . . . . Fastest Speed 50 | 50 160 180 180 180 180 200 200 200 203 203 202 180 180 Average Speed 195 | 155 176 190 190 180 190 200 200 202 207 222 216 188 183 Slowest Speed 2050 | 160 180 200 200 180 200 200 200 203 225 245 223 220 2050 Overloaded Moves . | . . . . . . . . . . . . . . Propulsion Burnouts . | . . . . . . . . . . . . . . Robots Hopped . | . . . . . . . . . . . . . . Cave-ins Triggered . | . . . . . . . . . . . . . . Exploration Rate (%) 58 | 6 96 100 13 99 71 89 44 10 8 97 7 81 96 Regions Visited 13 Branch Regions 7 Pre-discovered Areas 4 | . . 2 . 1 . . . . . . . 1 . Known Exits Taken . | . . . . . . . . . . . . . . Unknown Exits Taken 13 | 1 1 1 1 1 1 1 1 1 1 1 1 1 . Scrap Searched 8 | . . 1 . 2 . . . . . . . 5 . Spaces Dug 30 | . . 28 . . . . . . 1 1 . . . Terrain Destroyed 330 | . . 109 8 15 . 11 52 48 36 7 6 17 21 Melee 2 | . . . . . . . . . 1 1 . . . Projectile 56 | . . . . . . . 3 . 3 6 6 17 21 AOE 272 | . . 109 8 15 . 11 49 48 32 . . . . Terrain Rammed . | . . . . . . . . . . . . . . Walls Destroyed . | . . . . . . . . . . . . . . Machines Disabled . | . . . . . . . . . . . . . . Actions | -11 -10 -10 -9 -9 -9 -8 -8 -7 -6 -6 -5 -5 -5 --------- Run | Scr Mat Min Mat Min Exi Min Mat Fac Fac Ext Fac Upp War Total 11638 | 267 1112 1287 119 1017 602 702 908 379 650 1751 552 1044 1248 Wait 783 | 105 32 176 6 37 8 94 14 . 174 46 40 42 9 Move 9796 | 125 977 1061 93 926 562 589 790 351 423 1439 460 903 1097 Hop . | . . . . . . . . . . . . . . Pick Up 185 | 6 21 2 5 8 19 3 15 3 11 36 27 15 14 Fast Attach 37 | 8 6 2 1 3 1 . 4 . 2 3 1 1 5 Attach 71 | . 1 2 3 2 . 2 3 2 4 9 4 20 19 Detach 10 | 1 1 . . 2 . 2 . . . 2 . 2 . Swap 40 | . 4 . 2 6 3 . 9 1 1 5 . 5 4 Drop 107 | . 14 1 3 16 9 2 23 2 8 12 5 7 5 Fire 324 | 22 42 35 5 11 . 4 36 16 21 41 14 43 34 Melee 9 | . . . . . . . . . 1 2 . 6 . Ram . | . . . . . . . . . . . . . . Kick . | . . . . . . . . . . . . . . Crush 59 | . 14 8 1 6 . 6 14 4 5 . 1 . . Escape Stasis 14 | . . . . . . . . . . 14 . . . Rewire 203 | . . . . . . . . . . 142 . . 61 Trap . | . . . . . . . . . . . . . . Miscellaneous . | . . . . . . . . . . . . . . Route ------- -11/Scrapyard -10/Materials (discovered 4 exits: [*Mat x3] / [*Min]) -10/Mines (discovered 2 exits: [*Mat x2]) -9/Materials -9/Mines (discovered 3 exits: *Mat x2 / *Exi) -9/Exiles (discovered 2 exits: [*Min x2]) -8/Mines (discovered 2 exits: *Mat x2) -8/Materials (discovered 2 exits: *Fac x2) -7/Factory -6/Factory (discovered 2 exits: *Fac / *Ext) -6/Extension (discovered 2 exits: *Fac / [*Cet]) -5/Factory -5/Upper Caves (discovered 2 exits: *Upp / *War) -5/Warlord (discovered 1 exit: [*Pro]) History --------- Turn | Location | Event 29 | -11/Scrapyard | Discovered new exit (range 16) 385 | -11/Scrapyard | Entered Materials 386 | -10/Materials | Build established: Mutant 1154 | -10/Materials | Discovered new exit (range 5) 1296 | -10/Materials | Discovered new exit (range 13) 1371 | -10/Materials | Discovered new exit (range 10) 1736 | -10/Materials | Discovered new exit (range 7) 2336 | -10/Materials | Entered Mines 2341 | -10/Mines | Met a Derelict bent on vengeance 2406 | -10/Mines | Learned location of Storage (-9) 2551 | -10/Mines | Discovered new exit (range 15) 2592 | -10/Mines | Assisted by bots powering up and referring to "LRC-V3" 2605 | -10/Mines | Learned location of Zion (-6) 2832 | -10/Mines | Assembled infested the area 2837 | -10/Mines | Assisted by a Guerilla fighting off Assembled 3490 | -10/Mines | Discovered new exit (range 13) 4642 | -10/Mines | Entered Materials 4642 | -9/Materials | Accompanied by 2 allies 4642 | -9/Materials | Evolved 2 slots: Utility x1, Weapon x1 4736 | -9/Materials | Discovered new exit (range 15) 4855 | -9/Materials | Entered Mines 4855 | -9/Mines | Accompanied by 1 ally 4864 | -9/Mines | Met a Derelict shopkeep closing up shop 5216 | -9/Mines | Discovered new exit (range 7) 5318 | -9/Mines | Found the Drone Emporium 5352 | -9/Mines | Found Prototype Device 5405 | -9/Mines | YI-UF0 nonchalantly dropped a Grenade Launcher on the ground 5470 | -9/Mines | Discovered new exit (range 13) 5787 | -9/Mines | Received a Rocket Launcher from a helpful Derelict 6238 | -9/Mines | Build established: Hauler-Mutant 6624 | -9/Mines | Deemed a non-threat by the Exiles lab entrance 6624 | -9/Mines | Discovered new exit (range 5) 6631 | -9/Mines | Entered Exiles 6655 | -9/Exiles | Discovered new exit (range 15) 6725 | -9/Exiles | Met 8R-AWN 6871 | -9/Exiles | Met EX-HEX 6936 | -9/Exiles | Met EX-DEC 7373 | -9/Exiles | Met EX-BIN 7401 | -9/Exiles | Aligned with FarCom system 7403 | -9/Exiles | Given EX-Vault access code 7451 | -9/Exiles | Opened EX-Vault 7518 | -9/Exiles | Found Trap Reconfigurator 7593 | -9/Exiles | Warned to stay clear of 0b10 Research branches 7717 | -9/Exiles | Discovered new exit (range 14) 7739 | -9/Exiles | Left Exiles lab with Trap Reconfigurator 7739 | -9/Exiles | Entered Mines 7905 | -8/Mines | Discovered new exit (range 7) 9033 | -8/Mines | Discovered new exit (range 5) 9041 | -8/Mines | Entered Materials 9041 | -8/Materials | Evolved 2 slots: Utility x1, Weapon x1 9366 | -8/Materials | Build established: Hauler-Skirmisher 10100 | -8/Materials | Discovered new exit (range 16) 10522 | -8/Materials | Discovered new exit (range 15) 10819 | -8/Materials | Entered Factory 10819 | -7/Factory | Evolved 2 slots: Propulsion x1, Utility x1 11253 | -7/Factory | Build established: Hauler-Tank 11535 | -7/Factory | Discovered new exit (range 9) 11591 | -7/Factory | Entered another Factory area 11591 | -6/Factory | Evolved 2 slots: Utility x2 12539 | -6/Factory | Discovered new exit (range 13) 12740 | -6/Factory | Discovered new exit (range 6) 12749 | -6/Factory | Entered Extension 12756 | -6/Extension | Disrupted transfer network 12840 | -6/Extension | Rescued a captive Derelict 12892 | -6/Extension | Lost 3 parts (1n2u) 13164 | -6/Extension | Build established: Hauler-Skirmisher 13339 | -6/Extension | Rescued a captive Derelict 13541 | -6/Extension | Rescued a captive Derelict 13622 | -6/Extension | Rescued a captive Derelict 13624 | -6/Extension | Rescued a captive Derelict 13704 | -6/Extension | Rescued A7 13841 | -6/Extension | Spotted B-75 Beast 13860 | -6/Extension | Spotted B-75 Beast 13869 | -6/Extension | P-60 Hacker assimilated allied OS-SV9(h) 13874 | -6/Extension | Allies destroyed B-75 Beast 13879 | -6/Extension | P-60 Hacker assimilated allied H7-64Y(g) 13894 | -6/Extension | Destroyed B-75 Beast 14291 | -6/Extension | Build established: Hauler-Mutant 15306 | -6/Extension | Discovered new exit (range 15) 15308 | -6/Extension | Discovered new exit (range 15) 15459 | -6/Extension | Identified Decoy Drone Bay 15544 | -6/Extension | Build established: Hauler-Skirmisher 16355 | -6/Extension | Entered Factory 16355 | -5/Factory | Accompanied by 8 allies (A7) 16355 | -5/Factory | Evolved 2 slots: Power x1, Propulsion x1 17091 | -5/Factory | Discovered new exit (range 7) 17473 | -5/Factory | Entered Upper Caves 17473 | -5/Upper Caves | Accompanied by 3 allies 17522 | -5/Upper Caves | Found Alien Artifact 17525 | -5/Upper Caves | Identified Dimensional Node Initializer 17525 | -5/Upper Caves | Initialized slip node 17727 | -5/Upper Caves | Attracted the attention of an 0b10 base 17812 | -5/Upper Caves | Destroyed 7 combat bots 18104 | -5/Upper Caves | Build established: Hauler-Mutant 18231 | -5/Upper Caves | Spotted B-75 Beast 18344 | -5/Upper Caves | Destroyed B-75 Beast 18370 | -5/Upper Caves | Lost 8 parts (2p2n2u2w) 18510 | -5/Upper Caves | Attracted the attention of an 0b10 checkpoint 18682 | -5/Upper Caves | Identified exit to Upper Caves 19183 | -5/Upper Caves | Learned location of 1 exit from Factory 19213 | -5/Upper Caves | Build established: Hauler-Tank 19246 | -5/Upper Caves | A Derelict revealed a hidden shortcut to "reach the base" 19411 | -5/Upper Caves | Entered Warlord 19528 | -5/Warlord | Discovered new exit (range 8) 19699 | -5/Warlord | System corruption cleaned by Quarantine Array 20326 | -5/Warlord | Learned Research emergency access door positions 20326 | -5/Warlord | Learned Testing stockpile data 20327 | -5/Warlord | Learned 4 Research zone layouts 20329 | -5/Warlord | Learned Research security intel 20329 | -5/Warlord | Learned Armory repair station intel 20329 | -5/Warlord | Learned Research garrison access intel 20518 | -5/Warlord | Met Warlord 20543 | -5/Warlord | Warlord's base attacked by MAIN.C 20714 | -5/Warlord | Found Signal Generator 20717 | -5/Warlord | Found Signal Generator 20893 | -5/Warlord | Warlord forces counterattacked 20959 | -5/Warlord | Opened side exit 20980 | -5/Warlord | Spotted Striker 21218 | -5/Warlord | Warlord base infiltrated, sounded retreat 21281 | -5/Warlord | Found Prototype Energy Gun 21283 | -5/Warlord | Found Prototype Energy Gun 21286 | -5/Warlord | Found Prototype Energy Cannon 21289 | -5/Warlord | Found Prototype Energy Cannon 21424 | -5/Warlord | Spotted Striker 21429 | -5/Warlord | Identified Vortex Shotgun (x2) 21430 | -5/Warlord | Identified Vortex Cannon (x2) 21446 | -5/Warlord | Destroyed Striker 21488 | -5/Warlord | Lost 7 parts (1p3n1u2w) 21506 | -5/Warlord | Destroyed 8 combat bots 21523 | -5/Warlord | Spotted Executioner 21535 | -5/Warlord | Core integrity fell below 50% 21568 | -5/Warlord | Destroyed Executioner 21597 | -5/Warlord | Lost 9 parts (1p1n3u4w) 21623 | -5/Warlord | Spotted Striker 21623 | -5/Warlord | Spotted Striker 21625 | -5/Warlord | Core integrity fell below 20% 21644 | -5/Warlord | Destroyed by Striker with Plasma Lance Last Messages --------------- 21628_ Slug penetrates B-74 Champion. 21628_ B-74 Champion suffers critical hit. 21628_ Destroyed Rnf. Antimatter Reactor. 21632_ Imp. Medium Treads destroyed. 21633_ ANNOUNCEMENT: MAIN.C reinforcements approaching through caves, arriving soon. 21633_ Slug penetrates B-74 Champion. 21633_ B-74 Champion destroyed. 21633_ Phase Cannon destroyed. 21634_ The unstable cave ceiling collapses. 21636_ Slug penetrates Earth. 21636_ Slug penetrates Striker. 21637_ Imp. Medium Treads destroyed. 21637_ Lyr. Light Armor Plating destroyed. 21638_ The unstable cave ceiling collapses. 21639_ Slug penetrates Striker. 21640_ The unstable cave ceiling collapses. 21643_ ANNOUNCEMENT: Detected 3 Grunt squads, 1 Behemoth squad, with prototype support. 21643_ Slug penetrates Striker. Map ----- +----------------------------------------------------+ | | | | | | | | | | | | | | | | | | | | | | | | | | | | | | | | | | | | | | | ?????????????????????# ### ??# #?????????????? | | ???????????????????### ##;;;####???????????? | | ???????????????????# " "" #???????????? | | ???????????????????# # "" #???????????# | | ??????????#######?## "" " #????######## | | ??????????# ### ^###### | | ??????????# ^^^^^ [ g K@ + | | ??????????# ^ = K ######+###### | | ?????????#"^^"""^ % g dg # # | | ????####### """ %g% # # | | ????# ## =*!i*[ ###+#;### # | | ????# # =%! [ + ! # | | ????# + d/% [ ### # | | ????# # = #?# | # | | ##??###### < ; i #?# # | | #??????# # % """ """ ######+#####+"# | | #??????## ## """ """ # #### ### | | #???????### # "" """ | | #?????????##% ! | | #?????????#=% !=# # | | ###########!= *=#?# ### | | ## %!%%%[#####+################## #?## # | | ## "!!=" #???########+#### # | | ## *%"= # %! ! | #???# # # | | ## =% %= # !&| #???# # | | ## [ ## ## ! | #???# !! # # | | ## ## ## #???# ! # # | | #" % ## / #???# !! # # | | X# ## ################???# + # | | ^## ## #?????# #???# # # | | ^##+######### #?????# #???############# # | +----------------------------------------------------+ Best States ------------- Heat Dissipation 71 Energy Generation 36 Energy Capacity 410 Matter Stores 300 Matter Capacity 600 Sight Range 16 Terrain Scan Density 10 Armor Coverage 975 Evasion (%) 40 Recoil Reduction 4 Item Schematics ----------------- System Backup Module | -7/Factory | Hacked Adv. ECM Suite | -7/Factory | Hacked Imp. Arc Projector | -6/Factory | Hacked Robot Schematics ------------------ None Fabricated ------------ Nothing Alien Tech Used ----------------- Dimensional Node Initializer Achievements -------------- None Challenges ------------ None Game ------ Seed DerelictMasterMace Manual? 0 Play Time 03:05:43 Cumulative 111.0 hours Start 2020.11.09 @ 22:33:32 End 2020.11.15 @ 18:52:43 Sessions 11 Manual Loads 0 Difficulty Rogue Special Mode Halloween2020/ForbiddenLore Game No. 88 Rogue 88 Adventurer 0 Explorer 0 Win Type - Total 0 Types 0/0/0/0/0/0/0/0/0 Lore% 43 Gallery% 51 Achievement% 28 Wizard Run 0 Options --------- ASCII 0 Keyboard 0 Movement Numpad Keybinds 0 Fullscreen 1 Font 18/SmallcapsGlow Map View 76x50 Tactical HUD 1 Map Filters NONE Filters NONE Steam 1 RUN: fac055b7-4b56-416b-8aba-7edcda129923